bitfinex/quotes_ETHUSD_20241106
["timestamp","ask_amount","ask_price","bid_price","bid_amount"]
[1730873419715,0.6767,2593.6,2593.1,0.27564749]
[1730873419884,0.6767,2593.6,2593.2,0.27564749]
[1730873420083,0.6767,2593.6,2593.0,0.8176]
[1730873420313,0.6767,2593.6,2593.1,0.2756256]
[1730873420517,0.6767,2593.6,2593.2,0.2756256]
[1730873420722,3.85534,2593.8,2593.0,0.8176]
[1730873420894,3.85549,2593.7,2593.1,0.27569643]
[1730873421101,3.85549,2593.7,2593.2,0.27569643]
[1730873421410,3.85549,2593.7,2593.0,0.8176]
[1730873421579,3.85549,2593.7,2593.1,0.27578348]
[1730873421783,3.85549,2593.7,2593.2,0.27578348]
[1730873422028,0.6767,2594.2,2593.3,0.35291811]
[1730873422329,0.6767,2594.2,2593.5,0.8176]
[1730873422484,0.6767,2594.2,2593.6,0.27580183]
[1730873422684,4.53153,2594.2,2593.5,0.8176]
[1730873423022,4.53153,2594.2,2593.6,0.07710471]
[1730873423324,4.53153,2594.2,2593.5,0.8176]
[1730873423325,0.6767,2594.2,2593.7,0.27563101]
[1730873423521,0.6767,2594.2,2593.8,0.27563101]
[1730873423740,0.6767,2594.5,2593.9,0.07710028]
[1730873423929,3.85457,2594.4,2593.6,0.55]
[1730873424083,3.85457,2594.4,2593.7,0.39609608]
[1730873424287,3.85457,2594.4,2593.8,0.27560214]
[1730873424487,3.85457,2594.4,2593.7,0.20201197]
[1730873424719,3.85515,2594.0,2593.5,1.07402365]
[1730873424932,3.85481,2594.2,2593.6,0.27561541]
[1730873425163,3.85454,2594.4,2593.7,0.12049388]
[1730873425450,3.85454,2594.4,2593.5,1.01039031]
[1730873425613,0.6767,2594.5,2593.6,0.4732454]
[1730873425814,0.6767,2594.5,2593.7,0.39614746]
[1730873426011,3.85416,2594.6,2593.8,0.61242522]
[1730873426264,3.85416,2594.6,2593.9,0.80521553]
[1730873426459,3.85416,2594.6,2594.0,0.33674032]
[1730873426608,0.6767,2595.0,2594.2,0.8176]
[1730873426815,0.6767,2595.5,2594.3,1.42674905]
[1730873427111,4.52961,2595.5,2594.4,0.79965768]
[1730873427312,4.52961,2595.5,2594.5,1.34965768]
[1730873427515,0.6767,2595.5,2594.6,4.61725768]
[1730873427737,0.6767,2595.5,2594.7,0.79965768]
[1730873427942,0.6767,2595.5,2594.8,0.79965768]
[1730873428165,0.6767,2595.5,2594.9,0.33664803]
[1730873428318,0.6767,2595.5,2595.0,0.33664803]
[1730873428518,0.6767,2595.5,2594.8,0.46290001]
[1730873428857,0.6767,2595.5,2594.9,0.33658051]
[1730873429012,0.6767,2595.5,2595.0,0.33658051]
[1730873429013,1.11473841,2595.5,2595.0,0.33658051]
[1730873429214,1.11473841,2595.5,2594.6,0.8176]
[1730873429215,0.43803841,2595.5,2594.7,0.46290037]
[1730873429437,3.85306,2595.4,2594.8,0.3365422]
[1730873429640,3.85338,2595.2,2594.6,1.28051526]
[1730873429852,0.6767,2595.2,2594.6,0.8176]
[1730873430070,0.6767,2595.6,2594.7,0.19752018]
[1730873430232,0.6767,2595.6,2594.8,0.33659866]
[1730873430574,0.6767,2595.6,2594.9,0.33659866]
[1730873430729,0.6767,2595.6,2595.0,0.12044439]
[1730873430931,0.6767,2595.6,2594.7,3.46286254]
[1730873431154,4.98229,2595.6,2594.8,0.33656608]
[1730873431462,4.98229,2595.6,2594.7,3.0]
[1730873431674,4.98229,2595.6,2594.8,0.33652931]
[1730873431973,8.83509,2595.6,2594.7,0.33650404]
[1730873432150,4.98229,2595.6,2594.7,0.33649992]
[1730873432463,0.498229,2595.5,2594.7,0.21599382]
[1730873432707,4.351049,2595.5,2594.7,0.21599382]
[1730873432845,0.498229,2595.5,2594.7,0.21599382]
[1730873433045,0.6767,2595.6,2594.8,0.07707163]
[1730873433245,3.85202,2596.1,2594.8,0.07707163]
[1730873433472,0.6767,2596.0,2594.9,0.55]
[1730873433680,0.6767,2596.0,2594.9,0.76597866]
[1730873433979,3.85173,2596.3,2595.1,0.55]
[1730873434179,0.59492511,2596.2,2595.2,0.7545]
[1730873434556,0.59492511,2596.2,2595.3,0.07704777]
[1730873434896,0.59492511,2596.2,2595.2,0.7545]
[1730873434897,1.27992111,2596.4,2595.4,0.55]
[1730873435075,1.27992111,2596.4,2595.3,0.55]
[1730873435444,1.27992111,2596.4,2595.3,3.55]
[1730873435770,1.27992111,2596.4,2595.3,0.55]
[1730873436146,1.27992111,2596.4,2595.4,0.7545]
[1730873436382,0.51313411,2596.3,2595.4,0.7545]
[1730873438382,4.36477411,2596.3,2595.4,0.7545]
[1730873438883,0.51313411,2596.3,2595.4,0.7545]
[1730873439084,3.85201,2596.1,2595.4,0.7545]
[1730873439290,3.85208,2596.0,2595.4,0.7545]
[1730873439486,3.85208,2596.0,2594.7,0.7545]
[1730873439487,3.85237,2595.8,2594.7,0.7545]
[1730873439987,3.85276,2595.6,2594.7,0.7545]
[1730873440156,3.85312,2595.3,2594.7,0.7545]
[1730873440495,3.85301,2595.4,2594.7,0.7545]
[1730873440656,4.623605,2595.4,2594.7,0.7545]
[1730873440852,3.85319,2595.3,2594.7,0.7545]
[1730873441189,3.85334,2595.2,2594.7,0.7545]
[1730873441399,0.770595,2595.4,2594.7,0.7545]
[1730873441688,3.85298,2595.4,2594.7,0.7545]
[1730873442190,4.57666132,2595.7,2594.7,0.7545]
[1730873442395,3.85326,2595.2,2593.9,0.7545]
[1730873442599,3.85381,2594.9,2593.9,0.7545]
[1730873443089,3.85371,2594.9,2593.9,0.7545]
[1730873443288,3.85417,2594.6,2593.9,0.7545]
[1730873443692,3.85394,2594.8,2593.9,0.7545]
[1730873444395,3.85373,2594.9,2594.0,0.07709208]
[1730873444596,4.692135,2594.9,2593.9,0.7545]
[1730873445166,3.85425,2594.6,2593.9,0.7545]
[1730873445570,3.85387,2594.8,2593.9,0.7545]
[1730873445763,3.85387,2594.8,2594.0,0.0770882]
[1730873446313,3.81477,2594.8,2593.9,0.7545]
[1730873446657,0.838405,2594.9,2593.9,0.7545]
[1730873446858,3.85388,2594.8,2594.0,0.07708819]
[1730873447090,3.8541,2594.7,2593.9,0.7545]
[1730873448283,3.85388,2594.8,2593.9,0.7545]
[1730873448796,3.85388,2594.8,2594.0,0.07708822]
[1730873448993,0.838405,2594.9,2594.0,0.07708822]
[1730873449192,4.692165,2594.9,2594.0,0.07708822]
[1730873449395,3.85364,2595.0,2594.1,0.7604]
[1730873449702,3.85378,2594.9,2594.1,0.7604]
[1730873450265,3.85387,2594.8,2594.1,0.7604]
[1730873450493,3.85411,2594.7,2594.1,0.7604]
[1730873451402,3.85388,2594.8,2594.1,0.7604]
[1730873451584,3.85352,2595.1,2594.2,0.07709183]
[1730873451760,4.3450735,2595.1,2594.2,0.07709183]
[1730873451958,3.85352,2595.1,2594.1,0.7604]
[1730873452162,4.52997,2595.2,2594.1,0.7604]
[1730873452362,3.85318,2595.3,2594.2,0.07707884]
[1730873452602,0.6767,2595.6,2594.5,0.55]
[1730873452899,3.85232,2595.9,2594.9,0.55]
[1730873453102,3.85196,2596.1,2595.0,0.8374558]
[1730873453305,4.45479111,2596.4,2595.4,0.7604]
[1730873453478,3.85157,2596.4,2595.6,0.7604]
[1730873453870,3.85146,2596.5,2595.6,0.7604]
[1730873454095,4.63138532,2596.7,2595.6,0.7604]
[1730873454418,3.85181,2596.2,2595.6,0.7604]
[1730873454707,3.85154,2596.4,2595.6,0.7604]
[1730873454868,4.236694,2596.4,2595.6,0.7604]
[1730873455811,3.85181,2596.2,2595.6,0.7604]
[1730873456812,7.70371,2596.2,2595.6,0.7604]
[1730873457020,3.85194,2596.1,2595.6,0.7604]
[1730873457170,3.85211,2596.0,2595.6,0.7604]
[1730873457571,3.85235,2595.9,2595.6,0.7604]
[1730873457877,3.85211,2596.0,2595.6,0.7604]
[1730873458302,3.85226,2595.9,2595.6,0.7604]
[1730873458615,3.84939329,2595.8,2595.3,0.7604]
[1730873459038,3.85252,2595.7,2595.3,0.7604]
[1730873459334,3.85293,2595.5,2595.0,0.7604]
[1730873459498,0.02,2596.2,2595.0,0.7604]
[1730873459499,0.6767,2595.6,2595.0,0.7604]
[1730873459704,3.85328,2595.2,2594.4,0.7604]
[1730873460404,3.85365,2595.0,2594.4,0.7604]
[1730873461118,3.85305,2595.4,2594.4,0.7604]
[1730873461325,0.6767,2595.6,2594.4,0.7604]
[1730873461326,3.85357,2595.0,2594.4,0.7604]
[1730873461942,3.85334,2595.2,2594.4,0.7604]
[1730873462138,0.385334,2595.2,2594.4,0.7604]
[1730873462316,3.85366,2595.0,2594.4,0.7604]
[1730873463341,3.85338,2595.2,2594.4,0.7604]
[1730873463905,3.85358,2595.0,2594.4,0.7604]
[1730873464413,3.85336,2595.2,2594.4,0.7604]
[1730873464648,3.85342,2595.1,2594.4,0.7604]
[1730873464850,7.70724,2595.0,2594.4,0.7604]
[1730873465016,3.85359,2595.0,2594.4,0.7604]
[1730873465337,3.85347,2595.1,2594.4,0.7604]
[1730873466052,3.85322,2595.3,2594.4,0.7604]
[1730873466478,3.85292,2595.5,2594.6,0.7867]
[1730873466679,3.85268,2595.6,2594.6,0.7867]
[1730873466887,3.85297,2595.4,2594.4,0.55]
[1730873467092,3.85314,2595.3,2594.6,0.7867]
[1730873467588,3.85311,2595.3,2594.6,0.7867]
[1730873467787,3.85359,2595.0,2594.6,0.7867]
[1730873467986,3.85394,2594.8,2594.2,1.0739458]
[1730873468201,3.85371,2594.9,2594.2,0.7867]
[1730873468505,3.85357,2595.0,2594.3,0.28731755]
[1730873468681,3.85339,2595.2,2594.4,0.7867]
[1730873468879,3.85335,2595.2,2594.4,1.07402819]
[1730873469079,3.85312,2595.3,2594.4,0.7867]
[1730873469397,3.85343,2595.1,2594.4,0.7867]
[1730873469593,3.85343,2595.1,2594.4,1.07400962]
[1730873469767,3.85343,2595.1,2594.4,0.7867]
[1730873470193,7.70635,2595.3,2594.4,1.07400962]
[1730873470381,7.70635,2595.3,2594.4,0.7867]
[1730873470716,3.85328,2595.2,2594.4,0.7867]
[1730873470868,3.85344,2595.1,2594.4,0.7867]
[1730873471069,3.85392,2594.8,2594.4,1.07407759]
[1730873471315,7.70788,2594.8,2594.4,0.7867]
[1730873471606,3.85392,2594.8,2594.4,0.7867]
[1730873472166,3.85372,2594.9,2594.4,0.7867]
[1730873472473,3.85387,2594.8,2594.4,0.7867]
[1730873473199,3.85443,2594.5,2594.1,0.7867]
[1730873473621,3.85401,2594.7,2594.1,0.7867]
[1730873473622,7.70809,2594.7,2594.1,0.7867]
[1730873473957,3.85411,2594.7,2594.1,0.7867]
[1730873474702,3.85418,2594.6,2594.1,0.7867]
[1730873476206,3.8543,2594.5,2594.1,0.7867]
[1730873476563,3.85418,2594.6,2594.1,0.7867]
[1730873476806,3.854,2594.8,2594.1,0.7867]
[1730873476971,3.85372,2594.9,2594.1,0.7867]
[1730873477318,3.85358,2595.0,2594.3,0.7867]
[1730873477491,3.85357,2595.0,2594.3,0.7867]
[1730873478220,3.6767,2595.4,2594.3,0.7867]
[1730873478221,3.85333,2595.2,2594.3,0.7867]
[1730873478422,3.85402,2594.7,2594.3,0.7867]
[1730873478985,3.85419,2594.6,2594.3,0.7867]
[1730873479323,3.85445,2594.4,2593.8,0.7867]
[1730873479538,3.85445,2594.4,2593.8,1.07409458]
[1730873479821,3.85445,2594.4,2593.8,0.7867]
[1730873480126,3.85462,2594.3,2593.8,0.7867]
[1730873480331,3.85484,2594.2,2593.8,0.7867]
[1730873480890,7.70968,2594.2,2593.8,0.7867]
[1730873481090,3.85484,2594.2,2593.8,0.7867]
[1730873481587,3.85448,2594.4,2593.8,0.7867]
[1730873481801,3.85432,2594.5,2593.8,0.7867]
[1730873482133,3.85426,2594.6,2593.8,0.7867]
[1730873482432,3.85437,2594.5,2593.8,0.7867]
[1730873482582,3.85452,2594.4,2593.8,0.7867]
[1730873482783,3.85437,2594.5,2593.8,0.7867]
[1730873483193,3.85447,2594.4,2593.8,0.7867]
[1730873483621,3.85431,2594.5,2593.8,0.7867]
[1730873484613,3.85373,2594.9,2593.8,0.7867]
[1730873484789,3.85389,2594.8,2593.9,0.7867]
[1730873484986,3.85386,2594.8,2593.9,0.7867]
[1730873485196,3.85401,2594.7,2593.9,0.7867]
[1730873485398,3.85424,2594.6,2593.9,0.7867]
[1730873485830,3.85402,2594.7,2593.9,0.7867]
[1730873486408,0.18327134,2595.4,2594.0,0.7867]
[1730873486635,0.18327134,2595.4,2594.2,0.7867]
[1730873486636,3.85364,2595.0,2594.2,0.7867]
[1730873486839,0.6767,2595.4,2594.3,0.28771536]
[1730873487136,3.85349,2595.1,2594.4,0.7867]
[1730873487340,3.85386,2594.8,2594.4,0.7867]
[1730873487553,3.85372,2594.9,2594.4,0.7867]
[1730873487710,3.85322,2595.3,2594.4,0.86378446]
[1730873487898,0.40213148,2595.7,2594.7,0.7867]
[1730873488103,7.70408,2596.1,2594.9,0.7867]
[1730873488331,7.70408,2596.1,2594.8,1.37475966]
[1730873488332,3.85209,2596.0,2595.1,0.7867]
[1730873488511,3.85209,2596.0,2595.2,0.3649271]
[1730873488716,3.85172,2596.3,2595.3,0.28787119]
[1730873488913,3.85186,2596.2,2595.4,1.07457119]
[1730873489235,3.85172,2596.3,2595.6,0.7888]
[1730873489397,7.70348,2596.3,2595.6,0.7888]
[1730873489600,4.622058,2596.3,2595.6,0.7888]
[1730873489833,3.85201,2596.1,2595.6,0.7888]
[1730873490014,4.57666132,2595.7,2595.1,0.45983133]
[1730873490236,3.85356,2595.0,2594.5,0.7888]
[1730873490536,3.85322,2595.3,2594.5,0.7888]
[1730873490707,3.85311,2595.3,2594.5,0.7888]
[1730873490919,3.8531,2595.4,2594.5,0.7888]
[1730873491131,3.85253,2595.7,2594.6,0.07707451]
[1730873491457,3.85253,2595.7,2594.6,0.7888]
[1730873491602,7.70489,2595.8,2594.6,0.7888]
[1730873491805,7.70489,2595.8,2594.8,0.7888]
[1730873492774,3.85257,2595.7,2594.8,0.7888]
[1730873493518,3.85241,2595.8,2594.8,0.7888]
[1730873493732,3.85212,2596.0,2595.1,0.55]
[1730873493733,3.85227,2595.9,2595.1,0.55]
[1730873494044,5.03057425,2595.9,2595.3,0.55]
[1730873494341,0.40195247,2596.1,2595.3,0.55]
[1730873494556,3.85192,2596.2,2595.6,0.7888]
[1730873494737,3.85158,2596.4,2595.6,0.7888]
[1730873494916,3.85158,2596.4,2595.7,0.55]
[1730873495106,5.19015175,2596.6,2595.7,0.55]
[1730873495107,9.04143175,2596.6,2595.8,0.7888]
[1730873495438,4.75548318,2596.5,2595.8,0.7888]
[1730873495647,5.19015175,2596.6,2595.9,0.55]
[1730873495815,5.19015175,2596.6,2596.0,0.7888]
[1730873496414,3.8515,2596.4,2596.0,0.7888]
[1730873496639,9.04147175,2596.6,2596.0,0.7888]
[1730873496871,5.19015175,2596.6,2596.0,0.7888]
[1730873497545,6.14721097,2596.6,2596.0,0.7888]
[1730873497781,3.85069,2597.0,2596.1,0.55]
[1730873497940,4.45340913,2597.2,2596.3,0.55]
[1730873498138,3.84979,2597.6,2596.6,0.7888]
[1730873498416,3.84979,2597.6,2596.8,0.7888]
[1730873498879,0.38593,2597.8,2596.9,0.55]
[1730873499083,3.84996,2597.5,2596.8,0.7888]
[1730873499392,3.84984,2597.6,2597.0,0.7888]
[1730873499679,0.384984,2597.5,2597.0,0.7888]
[1730873499998,4.234864,2597.5,2597.0,0.7888]
[1730873500203,0.384984,2597.5,2597.0,0.7888]
[1730873502054,3.84979,2597.6,2597.0,0.7888]
[1730873502254,3.84986,2597.5,2597.0,0.7888]
[1730873502484,3.84979,2597.6,2597.0,0.7888]
[1730873502893,7.69961,2597.6,2597.0,0.7888]
[1730873503194,3.84986,2597.5,2597.0,0.7888]
[1730873503355,0.769965,2597.4,2597.0,0.7888]
[1730873503556,3.84979,2597.6,2597.0,0.7888]
[1730873503997,7.69961,2597.6,2597.0,0.7888]
[1730873504410,3.84987,2597.5,2597.0,0.7888]
[1730873504571,3.84979,2597.6,2597.0,0.7888]
[1730873504771,4.234839,2597.5,2597.0,0.7888]
[1730873505412,0.384979,2597.5,2597.0,0.7888]
[1730873505620,4.234839,2597.5,2597.0,0.7888]
[1730873505906,3.85001,2597.4,2597.0,0.7888]
[1730873506121,3.85024,2597.3,2596.6,0.8109]
[1730873506294,0.4234769,2597.4,2596.6,0.8109]
[1730873506503,4.57666132,2597.2,2596.6,0.8109]
[1730873506685,3.85126,2596.6,2595.8,0.8109]
[1730873506879,3.85157,2596.4,2595.8,0.8109]
[1730873507511,4.621853,2596.4,2595.8,0.8109]
[1730873507681,0.770283,2596.4,2595.8,0.8109]
[1730873507885,7.70255,2596.6,2595.8,0.8109]
[1730873508217,3.85141,2596.5,2595.8,0.8109]
[1730873508511,0.78705751,2597.5,2596.3,0.55]
[1730873508712,3.84937,2597.9,2596.7,0.55]
[1730873508884,3.84941,2597.8,2596.9,0.8109]
[1730873509482,3.8497,2597.7,2596.9,0.8109]
[1730873509682,3.84977,2597.6,2596.9,0.8109]
[1730873510029,4.34458545,2598.1,2596.9,0.8109]
[1730873510183,0.0066819,2598.3,2597.3,0.8109]
[1730873510381,3.8492,2598.0,2597.3,0.8109]
[1730873511005,3.84896,2598.1,2597.3,0.8109]
[1730873511220,3.84928,2597.9,2597.3,0.8109]
[1730873511380,0.384928,2597.8,2597.3,0.8109]
[1730873511621,3.8554719,2598.3,2597.3,0.8109]
[1730873511826,3.8554319,2598.3,2597.4,0.55]
[1730873512035,0.0066819,2598.3,2597.5,0.8109]
[1730873513656,0.0066819,2598.3,2597.4,0.55]
[1730873513657,0.0066819,2598.3,2597.7,0.8109]
[1730873514818,0.0066819,2598.3,2597.8,0.22390543]
[1730873515236,0.0066819,2598.3,2597.7,0.8109]
[1730873515637,0.39220209,2598.3,2597.7,0.8109]
[1730873516132,3.84889,2598.2,2597.8,0.22421629]
[1730873516332,3.84889,2598.2,2597.7,0.8109]
[1730873516553,3.84898,2598.1,2597.8,0.22429534]
[1730873516747,3.84912,2598.0,2597.5,0.27991059]
[1730873516952,7.69836,2598.0,2597.4,0.8109]
[1730873517151,4.57666132,2598.0,2597.5,0.22438173]
[1730873517353,3.84985,2597.5,2597.1,0.22464373]
[1730873517641,3.84985,2597.5,2597.0,0.8109]
[1730873517642,3.85004,2597.4,2597.0,0.8109]
[1730873517865,7.69982,2597.5,2597.0,0.8109]
[1730873518193,1.22764813,2597.4,2597.0,0.8109]
[1730873518354,1.22764813,2597.4,2597.1,0.22474244]
[1730873518539,1.22764813,2597.4,2597.0,0.8109]
[1730873518735,1.22764813,2597.4,2597.1,0.22472967]
[1730873518983,1.22764813,2597.4,2597.0,0.8109]
[1730873519181,4.57666132,2597.6,2597.0,0.8109]
[1730873519480,6.84936,2597.9,2597.1,0.22475897]
[1730873519662,3.84936,2597.9,2597.2,0.22475897]
[1730873519867,3.84994,2597.5,2597.0,0.8109]
[1730873520038,3.84982,2597.6,2597.1,0.22471476]
[1730873520240,8.42588132,2598.0,2597.2,0.22471476]
[1730873520485,3.84943,2597.8,2597.3,0.22479344]
[1730873520686,3.84958,2597.7,2597.0,0.8109]
[1730873520839,3.84958,2597.7,2597.1,0.5056609]
[1730873521043,3.84958,2597.7,2597.2,0.50565757]
[1730873521251,0.91025813,2597.9,2597.3,0.50584537]
[1730873521454,8.42586132,2598.0,2596.2,5.0]
[1730873521455,0.49688634,2598.2,2597.5,0.8175]
[1730873521746,4.24094209,2598.3,2597.7,0.8175]
[1730873521747,0.39220209,2598.3,2597.7,0.8175]
[1730873522042,0.0066819,2598.3,2597.8,0.50513283]
[1730873522243,0.0066819,2598.3,2597.9,0.82991515]
[1730873522446,0.0066819,2598.3,2598.1,0.24780701]
[1730873522648,0.0066819,2598.3,2598.2,1.32263283]
[1730873524050,0.0066819,2598.3,2598.2,0.50513283]
[1730873524453,0.0066819,2598.3,2597.9,0.8175]
[1730873524657,0.0066819,2598.3,2598.2,1.32287024]
[1730873524874,0.0066819,2598.3,2598.2,1.32278732]
[1730873525391,0.0066819,2598.3,2598.2,1.32263987]
[1730873527110,0.0066819,2598.3,2598.2,1.32256728]
[1730873527772,0.0066819,2598.3,2598.2,1.32273817]
[1730873527974,0.0066819,2598.3,2598.2,1.32257871]
[1730873528406,0.0066819,2598.3,2598.2,0.8175]
[1730873528605,0.0066819,2598.3,2598.2,1.32239677]
[1730873530313,0.0066819,2598.3,2598.2,0.50489677]
[1730873530890,3.8553519,2598.3,2598.2,0.50489677]
[1730873531087,10.42887686,2598.3,2598.2,0.2243857]
[1730873531328,3.84942,2597.8,2597.7,0.24846474]
[1730873531527,3.84919,2598.0,2597.7,0.5291455]
[1730873531834,3.84919,2598.0,2597.2,0.8175]
[1730873532039,0.0066819,2598.3,2597.8,0.27910871]
[1730873532333,0.0066819,2598.3,2597.9,0.27910871]
[1730873532508,0.0066819,2598.3,2598.0,0.27910871]
[1730873532706,0.0066819,2598.3,2598.1,0.27910871]
[1730873532891,0.0066819,2598.3,2598.2,0.27910871]
[1730873534007,0.39220409,2598.3,2598.2,0.27280186]
[1730873534814,0.39220409,2598.3,2597.4,0.8175]
[1730873534815,4.24087409,2598.3,2597.4,0.8175]
[1730873535133,0.39220409,2598.3,2597.5,0.27285997]
[1730873535297,3.84905,2598.1,2597.4,0.8175]
[1730873535802,3.8554419,2598.3,2597.5,0.2729377]
[1730873536008,3.8554419,2598.3,2597.6,0.2729377]
[1730873536194,3.8554419,2598.3,2597.7,0.2729377]
[1730873536395,7.7042419,2598.3,2597.9,0.24856104]
[1730873536694,4.62586609,2598.3,2598.0,0.2729377]
[1730873536931,8.47464609,2598.3,2598.1,0.2729377]
[1730873537226,3.8489,2598.2,2597.8,0.24856104]
[1730873537532,3.8489,2598.2,2597.9,0.27324583]
[1730873537836,3.84904,2598.1,2598.0,0.27324583]
[1730873538333,4.62577609,2598.3,2598.0,0.27324583]
[1730873538539,4.31138761,2598.2,2598.1,0.27324583]
[1730873539827,3.8553519,2598.3,2598.1,0.27324583]
[1730873540130,0.0066819,2598.3,2598.2,0.27324583]
[1730873540330,3.8553519,2598.3,2598.2,0.27324583]
[1730873541443,0.0066819,2598.3,2598.2,0.49077463]
[1730873542272,3.8553519,2598.3,2598.2,0.49077463]
[1730873542446,4.62575109,2598.3,2598.2,0.2175288]
[1730873543889,9.20241241,2598.3,2598.2,0.2175288]
[1730873544251,3.8491,2598.1,2597.6,0.24856104]
[1730873544594,3.84885,2598.2,2597.4,0.8175]
[1730873544595,3.84885,2598.2,2597.7,0.73895759]
[1730873544794,3.84885,2598.2,2597.8,0.49039655]
[1730873545082,0.0066819,2598.3,2597.9,0.49039655]
[1730873545319,0.0066819,2598.3,2598.0,1.03544139]
[1730873545445,0.0066819,2598.3,2598.1,0.21794139]
[1730873545748,0.0066819,2598.3,2598.2,0.21789952]
[1730873546196,0.0066819,2598.3,2598.0,0.8175]
[1730873546490,3.84882,2598.2,2597.7,0.8175]
[1730873546698,3.84897,2598.1,2597.8,0.49017184]
[1730873546854,3.84897,2598.1,2597.9,0.21784153]
[1730873547186,3.84897,2598.1,2597.7,0.8175]
[1730873547384,3.84882,2598.2,2597.7,0.8175]
[1730873547385,3.84913,2598.0,2597.8,0.21788084]
[1730873547585,3.84898,2598.1,2597.9,0.21788084]
[1730873547789,7.69834,2598.0,2597.7,0.8175]
[1730873548086,3.84941,2597.8,2597.5,0.27247057]
[1730873548399,3.8492,2598.0,2597.6,0.21805162]
[1730873548552,3.8492,2598.0,2597.7,0.21805162]
[1730873548752,5.07709432,2598.1,2597.8,0.21808716]
[1730873549093,3.84898,2598.1,2597.5,0.27263021]
[1730873549287,3.84898,2598.1,2597.6,0.21819055]
[1730873549458,3.84933,2597.9,2597.6,0.49097097]
[1730873549653,3.84933,2597.9,2597.7,0.21820573]
[1730873549893,3.84933,2597.9,2597.8,0.21820369]
[1730873550099,4.619171,2597.9,2597.5,0.27282252]
[1730873550405,3.84966,2597.7,2597.6,0.21831824]
[1730873550552,3.85024,2597.3,2596.8,0.24852136]
[1730873550753,3.84965,2597.7,2596.9,0.49142423]
[1730873550953,3.0,2597.6,2597.1,0.7902]
[1730873551206,4.02814652,2597.9,2597.2,0.21839553]
[1730873551489,3.0,2598.2,2597.4,0.7902]
[1730873551705,4.5320619,2598.3,2597.5,0.21830577]
[1730873551988,3.8489,2598.2,2597.6,0.21830577]
[1730873552196,4.68699619,2598.2,2597.7,0.21830577]
[1730873552377,4.68699619,2598.2,2597.4,0.7902]
[1730873552589,3.8489,2598.2,2597.5,0.21823436]
[1730873552781,3.8489,2598.2,2597.6,0.21823436]
[1730873552994,3.84898,2598.1,2597.4,0.7902]
[1730873553202,3.84898,2598.1,2597.5,0.2182195]
[1730873553496,3.84882,2598.2,2597.4,0.7902]
[1730873553717,3.84882,2598.2,2597.5,0.21824889]
[1730873553869,3.84882,2598.2,2597.6,0.21824889]
[1730873554068,3.84882,2598.2,2597.4,1.06303406]
[1730873554314,4.70526136,2598.2,2597.5,0.21824328]
[1730873554465,4.70526136,2598.2,2597.4,0.7902]
[1730873554664,4.70526136,2598.2,2597.5,0.21823237]
[1730873554883,4.70526136,2598.2,2597.5,0.7902]
[1730873555110,3.84897,2598.1,2597.6,0.21823562]
[1730873555408,3.84882,2598.2,2597.5,0.7902]
[1730873555708,0.0066819,2598.3,2597.6,0.21831233]
[1730873556016,0.0066819,2598.3,2597.0,0.01]
[1730873556017,0.0066819,2598.3,2597.7,1.00851233]
[1730873556169,0.0066819,2598.3,2597.7,0.7902]
[1730873556802,0.0066819,2598.3,2597.8,0.21831687]
[1730873557196,0.0066819,2598.3,2597.7,0.7902]
[1730873557379,0.0066819,2598.3,2597.9,0.7902]
[1730873557579,0.0066819,2598.3,2598.1,0.7902]
[1730873557782,0.0066819,2598.3,2598.2,1.08545209]
[1730873557985,4.57666132,2599.5,2598.3,0.7902]
[1730873558282,3.84673,2599.7,2598.5,0.7902]
[1730873558486,4.68906913,2599.7,2598.7,0.7902]
[1730873558785,3.84675,2599.6,2598.9,0.7902]
[1730873559399,0.84233913,2599.7,2598.9,0.7902]
[1730873559572,3.84233913,2599.7,2598.9,0.7902]
[1730873559775,3.84233913,2599.7,2598.9,1.00818044]
[1730873560129,0.19056863,2599.9,2599.0,0.07694516]
[1730873560409,0.01352415,2599.9,2599.1,0.7902]
[1730873560629,0.01352415,2599.9,2599.2,0.07693452]
[1730873560777,0.01352415,2599.9,2599.3,0.7902]
[1730873561691,0.01352415,2599.9,2599.3,1.00818044]
[1730873562008,0.01352415,2599.9,2599.4,0.7902]
[1730873563221,3.82486288,2599.9,2599.4,0.7902]
[1730873563404,0.01352415,2599.9,2599.4,0.7902]
[1730873563788,150.5,2600.0,2599.4,0.7902]
[1730873566470,154.34615,2600.0,2599.4,0.7902]
[1730873567095,150.5,2600.0,2599.4,0.7902]
[1730873567412,7.65763873,2599.9,2599.4,0.7902]
[1730873568529,3.81133873,2599.9,2599.4,0.7902]
[1730873571097,150.67746003,2600.0,2599.4,0.7902]
[1730873571828,3.84635,2599.9,2599.4,0.7902]
[1730873571982,154.52361003,2600.0,2599.4,0.7902]
[1730873572424,154.52361003,2600.0,2598.6,0.7994]
[1730873572425,3.8466,2599.7,2598.6,0.7994]
[1730873572795,3.0,2599.8,2598.6,0.7994]
[1730873573025,0.68464,2599.7,2598.6,0.7994]
[1730873573181,0.68464,2599.7,2598.8,0.7994]
[1730873573382,0.68464,2599.7,2599.0,0.7994]
[1730873575008,150.5,2600.0,2599.1,0.07693992]
[1730873575186,150.5,2600.0,2599.1,0.7994]
[1730873577095,3.84652,2599.8,2599.1,0.7994]
[1730873577291,6.8463,2599.9,2599.1,0.7994]
[1730873577528,154.34616,2600.0,2599.1,0.7994]
[1730873577828,7.65764873,2599.9,2599.1,0.7994]
[1730873579532,3.81133873,2599.9,2599.1,0.7994]
[1730873580230,3.99405076,2599.9,2599.1,0.7994]
[1730873580390,150.5,2600.0,2599.1,0.7994]
[1730873580590,150.5,2600.0,2599.1,0.806]
[1730873581034,150.5,2600.0,2599.1,1.09174311]
[1730873581338,150.5,2600.0,2599.3,0.806]
[1730873581631,150.5,2600.0,2599.4,0.806]
[1730873582203,150.5,2600.0,2599.5,0.28574311]
[1730873582406,150.5,2600.0,2599.6,0.806]
[1730873582811,150.5,2600.0,2599.6,0.28574311]